bitfinex/quotes_SOLUSD_20240607
["timestamp","ask_amount","ask_price","bid_price","bid_amount"]
[1717783609823,21.6698674,160.34,160.04,62.485644]
[1717783610028,2.3078,160.33,160.04,47.52]
[1717783610210,32.26730614,160.34,160.04,47.52]
[1717783610723,32.26730614,160.34,160.06,37.52]
[1717783610724,1.6698674,160.34,160.06,37.52]
[1717783610913,1.6698674,160.34,160.07,126.90534787]
[1717783611115,1.6698674,160.34,160.11,156.0458]
[1717783611324,1.6698674,160.34,160.28,36.0458]
[1717783611704,1.6698674,160.34,160.26,37.52]
[1717783611905,1.6698674,160.34,160.09,120.0]
[1717783612126,1.6698674,160.34,160.1,33.56089138]
[1717783612327,1.6698674,160.34,160.11,120.0]
[1717783612628,1.6698674,160.34,160.12,33.56089138]
[1717783612815,37.99687742,160.35,160.17,120.0]
[1717783613004,1.52167396,160.35,160.22,120.0]
[1717783613214,0.03891246,160.47,160.22,120.0]
[1717783613215,0.03891246,160.47,160.25,37.52]
[1717783613406,0.03891246,160.47,160.24,10.0]
[1717783613407,0.03891246,160.47,160.27,18.72536273]
[1717783613724,0.03891246,160.47,160.29,34.4777908]
[1717783614129,0.03891246,160.47,160.29,50.68967769]
[1717783614432,0.03891246,160.47,160.3,6.21188689]
[1717783614613,0.03891246,160.47,160.29,6.90534787]
[1717783614818,40.91,160.67,160.33,120.0]
[1717783615035,10.0,160.74,160.34,37.52]
[1717783615334,2.492554,160.69,160.36,37.52]
[1717783615520,10.0,160.74,160.38,37.52]
[1717783615728,20.0,160.74,160.42,37.52]
[1717783615910,20.0,160.74,160.44,37.52]
[1717783615911,10.0,160.74,160.44,37.52]
[1717783616116,15.6103598,160.8,160.49,37.52]
[1717783616417,15.6103598,160.8,160.51,18.87211639]
[1717783616622,15.6103598,160.8,160.53,0.22423278]
[1717783616823,10.0,160.75,160.53,0.22423278]
[1717783617336,10.0,160.77,160.53,0.22423278]
[1717783617638,10.0,160.76,160.56,0.22423278]
[1717783617945,0.3144598,160.8,160.44,7.08759744]
[1717783617946,10.0,160.74,160.44,7.08759744]
[1717783618112,2.302,160.73,160.45,37.52]
[1717783618314,40.91,160.77,160.45,37.52]
[1717783618527,40.91,160.77,160.42,37.52]
[1717783618836,40.91,160.77,160.46,37.52]
[1717783619140,40.91,160.77,160.47,1.24138152]
[1717783619335,20.0,160.76,160.47,1.24138152]
[1717783619634,0.3144598,160.8,160.47,38.76138152]
[1717783620008,0.3144598,160.8,160.5,37.52]
[1717783620228,0.3144598,160.8,160.52,120.0]
[1717783620426,0.3144598,160.8,160.62,120.0]
[1717783620629,0.3144598,160.8,160.67,2.51042108]
[1717783620849,0.3144598,160.8,160.67,22.51042108]
[1717783621151,0.3144598,160.8,160.6,7.09172555]
[1717783621353,0.3144598,160.8,160.69,37.52]
[1717783621555,0.3144598,160.8,160.71,37.52]
[1717783621753,0.3144598,160.8,160.73,37.52]
[1717783621926,0.3144598,160.8,160.75,37.52]
[1717783622128,0.03879583,160.95,160.77,37.52]
[1717783622331,0.03879583,160.95,160.82,120.0]
[1717783622538,0.03879583,160.95,160.85,37.52]
[1717783622726,0.03879583,160.95,160.87,37.52]
[1717783622923,0.03879583,160.95,160.86,20.0]
[1717783623226,0.03879583,160.95,160.78,1.43876913]
[1717783624633,40.91,161.21,161.01,37.52]
[1717783625142,9.7144598,161.21,160.89,10.0]
[1717783625445,9.7144598,161.21,160.82,140.0]
[1717783625446,40.91,161.11,160.9,20.0]
[1717783625759,10.0,161.08,160.77,10.0]
[1717783625932,40.91,161.11,160.78,9.18049468]
[1717783626132,2.2969,161.09,160.78,9.18049468]
[1717783626334,40.91,161.01,160.78,1.43876913]
[1717783626537,40.91,161.01,160.78,46.70049468]
[1717783626850,20.0,161.0,160.8,37.52]
[1717783627659,20.0,161.0,160.82,37.52]
[1717783627861,20.0,161.09,160.82,37.52]
[1717783628072,2.2972,161.07,160.83,0.31897452]
[1717783628231,40.91,161.01,160.83,0.31897452]
[1717783628569,20.0,161.0,160.78,1.43876913]
[1717783628740,40.91,160.92,160.78,1.43876913]
[1717783628938,20.0,160.91,160.59,37.52]
[1717783629133,40.91,160.83,160.59,7.73887232]
[1717783629340,40.91,160.83,160.53,7.73887232]
[1717783629341,2.3007,160.82,160.53,7.73887232]
[1717783629533,40.91,160.72,160.4,10.26399493]
[1717783629763,20.0,160.71,160.45,1.44172827]
[1717783630062,1.38456792,160.81,160.4,10.26399493]
[1717783630063,1.38456792,160.81,160.47,37.52]
[1717783630266,1.38456792,160.81,160.49,37.52]
[1717783630436,11.38456792,160.81,160.5,0.87363714]
[1717783630638,13.1097807,160.81,160.5,2.31491627]
[1717783630872,40.91,160.71,160.5,2.31491627]
[1717783631360,20.0,160.7,160.5,2.31491627]
[1717783631859,20.0,160.7,160.51,1.06091268]
[1717783632079,20.0,160.7,160.44,24.906847]
[1717783632080,20.0,160.7,160.52,1.06084658]
[1717783632364,40.91,160.62,160.46,1.06084658]
[1717783632741,10.0,160.6,160.46,1.06084658]
[1717783632933,4.35346238,160.66,160.32,1.06084658]
[1717783633139,15.3293,160.67,160.37,37.52]
[1717783633334,20.0,160.66,160.38,1.0604497]
[1717783633640,2.3034,160.63,160.38,1.0604497]
[1717783633963,20.0,160.64,160.39,0.93196051]
[1717783634165,40.91,160.69,160.39,0.93196051]
[1717783634166,1.38456792,160.62,160.45,120.0]
[1717783634372,1.38456792,160.62,160.49,37.52]
[1717783634567,1.38456792,160.62,160.52,157.52]
[1717783634878,40.91,161.0,160.6,120.0]
[1717783635156,24.87399,160.96,160.66,120.0]
[1717783635362,40.91,161.0,160.67,38.57793976]
[1717783635554,40.91,161.0,160.68,21.05787391]
[1717783635863,24.870672,160.99,160.68,21.05787391]
[1717783636070,24.870672,160.99,160.69,2.49738303]
[1717783636367,2.2984,160.98,160.69,2.49738303]
[1717783636564,2.2994,160.91,160.69,3.49738303]
[1717783636778,3.10830053,160.9,160.7,1.05957491]
[1717783636978,3.10872351,160.98,160.71,1.05950898]
[1717783637271,24.870672,160.99,160.71,1.05950898]
[1717783637451,3.10674473,160.98,160.71,1.05950898]
[1717783637638,24.870672,160.99,160.73,1.0]
[1717783637837,24.870672,160.99,160.74,1.05931123]
[1717783638042,2.2997,160.89,160.7,1.11648215]
[1717783638271,40.91,160.88,160.7,1.11648215]
[1717783638483,40.91,160.88,160.7,1.11641268]
[1717783638646,40.91,160.78,160.6,1.11662116]
[1717783638845,40.91,160.78,160.61,1.11655163]
[1717783639053,2.11648215,160.77,160.55,1.11800125]
[1717783639343,2.11648215,160.77,160.45,21.40896053]
[1717783639344,40.91,160.68,160.45,22.52696178]
[1717783639554,2.11648215,160.67,160.46,1.11800124]
[1717783639762,2.11648215,160.67,160.52,1.0]
[1717783639947,2.11648215,160.67,160.55,1.0]
[1717783640260,9.0,160.76,160.56,1.44074054]
[1717783640466,2.11648215,160.67,160.56,6.48982223]
[1717783641165,2.11648215,160.67,160.56,1.64128079]
[1717783641375,40.91,160.6,160.46,1.0]
[1717783641542,5.41812967,160.59,160.47,1.44154858]
[1717783641737,4.4004,160.55,160.47,0.44154858]
[1717783641968,20.0,160.58,160.47,0.44154858]
[1717783642149,20.2571,160.74,160.47,0.44154858]
[1717783642150,4.4004,160.66,160.47,0.44154858]
[1717783642359,4.4004,160.66,160.43,0.93482488]
[1717783642677,4.4004,160.52,160.37,21.41964032]
[1717783642870,4.4004,160.51,160.37,21.41964032]
[1717783643066,20.0,160.57,160.37,21.41964032]
[1717783643279,4.4004,160.51,160.37,21.41964032]
[1717783643578,4.4004,160.51,160.37,4.75304032]
[1717783643579,4.4004,160.45,160.37,4.75304032]
[1717783643861,20.0,160.46,160.3,0.3144598]
[1717783644039,24.4004,160.51,160.3,0.3144598]
[1717783644242,40.91,160.52,160.3,0.3144598]
[1717783644243,3.11535415,160.5,160.3,0.3144598]
[1717783644446,40.91,160.44,160.3,0.3144598]
[1717783644688,3.11850936,160.43,160.24,4.4004]
[1717783644965,40.91,160.44,160.24,4.4004]
[1717783645176,14.8211,160.5,160.24,5.8440177]
[1717783645177,10.0,160.43,160.24,5.8440177]
[1717783645347,5.5996,160.5,160.24,4.4004]
[1717783645348,10.0,160.44,160.24,4.4004]
[1717783645541,10.0,160.44,160.19,20.26592893]
[1717783645767,20.0,160.43,160.23,0.96550528]
[1717783645975,3.11783448,160.42,160.23,0.96550528]
[1717783646177,2.3075,160.35,160.18,1.6698674]
[1717783646376,40.91,160.35,160.18,1.6698674]
[1717783646868,31.03411042,160.52,160.18,1.6698674]
[1717783647048,6.6224,160.57,160.18,1.6698674]
[1717783647049,6.6224,160.57,160.2,37.52]
[1717783647252,15.7393,160.6,160.3,47.52]
[1717783647466,40.91,160.64,160.31,44.75887787]
[1717783647666,40.91,160.64,160.31,7.23887787]
[1717783647667,15.7393,160.56,160.31,7.23887787]
[1717783648077,56.6493,160.79,160.4,37.52]
[1717783648247,56.6493,160.79,160.42,37.52]
[1717783648248,10.0,160.65,160.42,37.52]
[1717783648574,3.11164396,160.78,160.44,37.52]
[1717783648762,42.05729271,160.79,160.46,47.52]
[1717783648961,24.898493,160.78,160.48,37.52]
[1717783649153,40.91,160.88,160.54,37.52]
[1717783649344,3.10896081,160.87,160.55,20.0]
[1717783649547,42.05729271,160.88,160.55,20.0]
[1717783649548,24.891365,160.78,160.56,7.23887787]
[1717783649751,1.14729271,160.88,160.58,120.0]
[1717783649945,1.14729271,160.88,160.57,20.0]
[1717783649946,2.2979,161.02,160.59,27.23887787]
[1717783650176,20.0,160.91,160.59,37.23887787]
[1717783650349,20.0,160.91,160.63,37.52]
[1717783650657,3.106964,161.01,160.65,37.52]
[1717783650977,3.106964,161.01,160.64,27.23887787]
[1717783650978,30.0,161.0,160.67,37.52]
[1717783651271,10.0,160.86,160.68,57.52]
[1717783651511,13.10683515,160.99,160.68,57.52]
[1717783651646,40.91,160.93,160.58,12.72633982]
[1717783651965,40.91,160.93,160.58,19.96521769]
[1717783652154,40.91,160.93,160.59,7.23887787]
[1717783652351,20.0,161.0,160.59,7.23887787]
[1717783652564,40.91,160.99,160.6,37.52]
[1717783652875,3.10700998,160.98,160.61,45.35256269]
[1717783653068,40.91,160.99,160.61,45.35256269]
[1717783653275,3.1067747,160.98,160.63,37.52]
[1717783653450,3.1067747,160.98,160.64,27.83245181]
[1717783653775,2.2985,160.97,160.65,0.59353699]
[1717783654075,3.10791874,160.97,160.66,20.20664232]
[1717783654290,10.0,160.94,160.67,0.5934631]
[1717783654574,10.0,160.8,160.67,0.5934631]
[1717783654765,10.0,160.81,160.68,0.59342616]
[1717783654958,40.91,160.95,160.68,0.59342616]
[1717783655956,20.0,161.0,160.7,37.52]
[1717783656269,20.0,161.0,160.72,47.52]
[1717783656470,20.0,161.0,160.74,37.52]
[1717783656648,20.0,161.0,160.73,40.79108362]
[1717783656649,10.0,160.97,160.75,20.78849686]
[1717783656985,3.1073809,160.96,160.75,0.59316774]
[1717783657274,10.0,160.88,160.66,0.59316774]
[1717783657482,10.0,160.86,160.66,0.59316774]
[1717783657656,44.0195474,160.85,160.65,20.20790013]
[1717783657883,70.91,160.85,160.65,20.80106787]
[1717783658095,42.8542355,160.96,160.66,20.79945435]
[1717783658382,11.14729271,160.96,160.67,20.20538468]
[1717783658580,10.0,160.94,160.68,0.59273824]
[1717783658781,10.0,160.9,160.68,0.59273824]
[1717783659018,10.0,160.9,160.67,20.20538468]
[1717783659019,2.3015,160.77,160.67,20.20538468]
[1717783659180,2.3012,160.79,160.53,20.81687207]
[1717783659385,10.0,160.78,160.54,20.22174633]
[1717783659580,10.0,160.78,160.55,0.59379207]
[1717783659781,2.3021,160.72,160.55,0.59379207]
[1717783660095,20.0,160.77,160.55,0.59379207]
[1717783660292,10.0,160.84,160.55,0.59379207]
[1717783660608,1.14729271,160.93,160.61,120.0]
[1717783660822,10.0,160.94,160.62,44.31687787]
[1717783661117,2.3006,160.83,160.6,20.21419151]
[1717783661284,10.0,160.9,160.6,20.21419151]
[1717783661478,10.0,160.9,160.61,20.0]
[1717783661677,2.2998,160.89,160.61,20.0]
[1717783661993,50.91,160.94,160.62,37.52]
[1717783662197,50.91,160.94,160.64,37.52]
[1717783662506,40.91,160.94,160.66,37.52]
[1717783662817,30.0,161.0,160.68,37.52]
[1717783662997,20.0,161.0,160.7,37.52]
[1717783663184,20.0,161.0,160.72,37.52]
[1717783663185,10.0,160.98,160.72,37.52]
[1717783663389,20.0,161.0,160.73,77.71784207]
[1717783663586,20.0,161.0,160.75,37.52]
[1717783663891,20.0,161.0,160.77,37.52]
[1717783664204,40.91,161.03,160.79,37.52]
[1717783664392,65.765654,161.03,160.81,37.52]
[1717783664712,65.765654,161.03,160.71,6.79687787]
[1717783664713,24.855654,161.03,160.82,20.0]
[1717783664914,89.25064854,161.13,160.83,37.52]
[1717783665121,24.84776,161.07,160.76,16.79687787]
[1717783665610,24.84776,161.07,160.77,37.52]
[1717783665785,24.84776,161.07,160.77,44.31687787]
[1717783666107,10.0,161.1,160.79,37.52]
[1717783666281,12.297,161.08,160.79,37.52]
[1717783666483,2.297,161.08,160.79,37.52]
[1717783666678,10.0,161.09,160.79,37.52]
[1717783666883,10.0,161.11,160.82,37.52]
[1717783667101,10.0,161.11,160.84,37.52]
[1717783668181,20.0,161.1,160.85,37.52]
[1717783669111,10.0,161.11,160.86,37.52]
[1717783669310,10.3144598,161.13,160.86,37.52]
[1717783669606,35.1543478,161.13,160.83,6.79687787]
[1717783669807,10.0,161.11,160.75,10.0]
[1717783669996,2.2969,161.09,160.75,10.0]
[1717783670197,2.2965,161.12,160.75,10.0]
[1717783670389,35.1543478,161.13,160.77,10.0]
[1717783670594,26.30164051,161.13,160.84,37.52]
[1717783670809,0.3144598,161.13,160.86,37.52]
[1717783671582,0.3144598,161.13,160.87,1.45053067]
[1717783671890,0.3144598,161.13,160.9,37.52]
[1717783672092,0.3144598,161.13,160.92,37.52]
[1717783672295,0.3144598,161.13,160.94,37.52]
[1717783672499,0.3144598,161.13,160.96,37.52]
[1717783672701,0.3144598,161.13,160.98,37.52]
[1717783672911,0.3144598,161.13,161.0,37.52]
[1717783673090,0.3144598,161.13,160.97,20.0]
[1717783673091,0.3144598,161.13,161.02,37.52]
[1717783673290,0.3144598,161.13,161.03,58.96908939]
[1717783674691,0.3144598,161.13,161.03,1.44908939]
[1717783674997,0.3144598,161.13,160.93,10.0]
[1717783675200,16.1423,161.29,160.97,15.13322142]
[1717783675493,10.0,161.28,160.98,1.44800918]
[1717783675713,16.1423,161.29,160.99,1.44791923]
[1717783675917,2.2949,161.23,160.99,1.44791923]
[1717783676115,10.0,161.28,160.99,1.44791923]
[1717783676536,20.0,161.27,160.99,1.44791923]
[1717783676688,4.5886,161.27,160.99,1.44791923]
[1717783676885,20.0,161.28,160.99,1.44791923]
[1717783677104,18.4364,161.29,160.99,1.44791923]
[1717783677105,16.1423,161.29,160.99,1.44791923]
[1717783677498,16.1423,161.29,161.0,20.0]
[1717783677699,10.0,161.28,161.01,1.44773937]
[1717783677900,16.1423,161.29,161.02,1.44764945]
[1717783678721,2.2943,161.27,161.02,1.44764945]
[1717783678896,10.0,161.28,161.02,1.44764945]
[1717783679211,2.2951,161.21,161.02,1.44764945]
[1717783679417,3.1021148,161.26,161.02,1.44764945]
[1717783679621,4.5888,161.27,161.02,1.44764945]
[1717783679795,1.6698674,161.3,161.02,1.44764945]
[1717783680191,2.2946,161.25,161.02,1.44764945]
[1717783680414,10.0,161.26,161.02,1.44764945]
[1717783680725,1.6698674,161.3,161.04,120.0]
[1717783680903,1.6698674,161.3,161.05,1.4489943]
[1717783681293,1.6698674,161.3,161.04,7.03160009]
[1717783681294,1.6698674,161.3,161.06,1.44890433]
[1717783681601,3.10069133,161.29,161.06,1.44890433]
[1717783681909,1.6698674,161.3,161.07,1.44881437]
[1717783682227,1.6698674,161.3,161.08,1.44872442]
[1717783683527,1.6698674,161.3,161.08,38.96872442]
[1717783683827,1.6698674,161.3,161.1,37.52]
[1717783684000,1.6698674,161.3,161.12,37.52]
[1717783684330,1.6698674,161.3,161.14,37.52]
[1717783684509,1.6698674,161.3,161.13,21.44827504]
[1717783684510,1.6698674,161.3,161.15,58.96809534]
[1717783684706,1.6698674,161.3,161.13,20.0]
[1717783685327,3.13709112,161.44,161.13,20.0]
[1717783685497,10.0,161.42,161.04,20.0]
[1717783685697,10.0,161.39,160.99,6.64102232]
[1717783685899,10.0,161.39,160.96,10.0]
[1717783685900,10.0,161.39,161.01,120.0]
[1717783686117,2.2922,161.42,161.06,25.43708829]
[1717783686325,3.09824114,161.41,161.02,6.64102232]
[1717783686527,10.0,161.38,161.01,0.99513723]
[1717783686837,10.0,161.4,161.05,37.52]
[1717783687004,23.09906199,161.39,161.05,37.52]
[1717783687201,4.5858,161.37,161.05,37.52]
[1717783687401,27.68555703,161.37,161.05,37.52]
[1717783687624,2.2938,161.3,161.05,37.52]
[1717783687829,20.0,161.32,161.0,9361.291227]
[1717783688029,4.5881,161.29,161.0,9361.291227]
[1717783688243,10.0,161.31,161.0,9361.291227]
[1717783688244,2.2939,161.3,161.0,9361.291227]
[1717783688422,10.0,161.28,161.0,9323.771227]
[1717783688736,2.2928,161.38,161.01,37.52]
[1717783688936,2.2921,161.43,161.08,37.52]
[1717783689236,4.5843,161.42,161.08,37.52]
[1717783689531,3.13729348,161.44,161.11,37.52]
[1717783689744,10.0,161.41,161.01,6.64102232]
[1717783689913,2.2942,161.28,161.0,9323.771227]
[1717783690110,4.5895,161.24,161.0,9323.771227]
[1717783690345,3.1023213,161.24,161.0,9323.771227]
[1717783690516,2.2944,161.26,161.0,9323.771227]
[1717783690718,3.09970799,161.29,161.0,9323.771227]
[1717783690913,3.1009588,161.29,161.0,9323.771227]
[1717783691112,2.2954,161.2,161.0,9323.771227]
[1717783691326,25.1158058,161.46,161.0,9323.771227]
[1717783691327,2.296,161.15,161.0,9323.771227]
[1717783691559,3.10332865,161.21,161.0,9323.771227]
[1717783691831,3.10203238,161.2,161.0,9323.771227]
[1717783692033,2.2959,161.16,161.0,9323.771227]
[1717783692246,2.2952,161.21,161.0,9323.771227]
[1717783692541,3.10261439,161.22,161.0,9323.771227]
[1717783692856,20.0,161.22,161.0,9323.771227]
[1717783693133,10.22893874,161.23,161.0,9323.771227]
[1717783693334,2.2953,161.2,161.0,9323.771227]
[1717783693540,9.1791,161.24,161.0,9323.771227]
[1717783693830,29.11768874,161.27,161.0,9323.771227]
[1717783693831,4.5918,161.16,161.0,9323.771227]
[1717783694044,10.0,161.23,161.0,9323.771227]
[1717783694215,29.11768874,161.27,161.0,9323.771227]
[1717783694534,10.0,161.24,161.0,9323.771227]
[1717783694752,10.0,161.22,161.0,9323.771227]
[1717783695053,3.1041661,161.21,161.0,9323.771227]
[1717783695216,4.5908,161.19,161.0,9323.771227]
[1717783695436,6.8884,161.14,161.0,9305.12030999]
[1717783695629,10.0,161.1,161.0,9288.45370999]
[1717783695954,23.10499021,161.13,161.0,9263.13619298]
[1717783695955,33.07385202,161.09,161.0,9263.13619298]
[1717783696157,4.5928,161.13,161.0,9263.13619298]
[1717783696357,9.1838,161.16,161.0,9263.13619298]
[1717783696358,3.10487546,161.16,161.0,9263.13619298]
[1717783696529,10.0,161.24,161.0,9263.13619298]
[1717783696733,9.1794,161.23,161.0,9263.13619298]
[1717783696929,10.0,161.24,161.0,9263.13619298]
[1717783697155,4.5922,161.15,161.0,9263.13619298]
[1717783697342,6.8893,161.12,161.0,9263.13619298]
[1717783697544,13.10560959,161.11,161.0,9263.13619298]
[1717783697754,3.10552053,161.12,161.0,9263.13619298]
[1717783698147,4.594,161.08,161.0,9263.13619298]
[1717783698482,4.5945,161.06,161.0,9263.13619298]
[1717783698771,20.0,161.06,161.0,9263.13619298]
[1717783699773,18.3837,161.01,161.0,9183.32419298]
[1717783700054,4.5923,161.14,161.0,9183.32419298]
[1717783700268,6.8893,161.12,161.0,9183.32419298]
[1717783700429,11.4811,161.14,161.0,9183.32419298]
[1717783700633,10.0,161.23,161.0,9183.32419298]
[1717783700859,2.2957,161.18,161.0,9183.32419298]
[1717783701158,10.0,161.25,161.0,9183.32419298]
[1717783701457,2.2963,161.13,161.0,9183.32419298]
[1717783701655,2.2956,161.18,161.0,9183.32419298]
[1717783701837,6.8829,161.27,161.0,9183.32419298]
[1717783702032,4.5909,161.19,161.0,9183.32419298]
[1717783702274,2.2957,161.17,161.0,9164.67327597]
[1717783702564,2.2948,161.23,161.0,9146.02235896]
[1717783702732,2.64335924,161.24,161.0,9146.02235896]
[1717783702932,2.2943,161.27,161.0,9146.02235896]
[1717783703252,2.64335924,161.31,161.01,20.31540986]
[1717783703443,2.2938,161.31,161.02,0.31539028]
[1717783703651,5.29593874,161.25,161.02,0.31539028]
[1717783703839,2.64335924,161.38,161.04,18.78]
[1717783704038,6.264,161.4,161.05,64.86247289]
[1717783704237,2.294,161.29,161.06,20.0]
[1717783704459,2.64335924,161.33,161.07,0.31529244]
[1717783704755,9.52435924,161.32,161.07,0.31529244]
[1717783704964,4.5875,161.31,161.07,0.31529244]
[1717783705135,2.64335924,161.3,161.01,0.31529244]
[1717783705341,2.64335924,161.29,161.01,0.31529244]
[1717783705536,4.5888,161.27,161.01,0.31529244]
[1717783705735,20.0,161.28,161.01,0.31529244]
[1717783705938,2.2951,161.22,161.01,0.31529244]
[1717783706259,4.5902,161.22,161.0,9146.02235896]
[1717783706468,4.5909,161.19,161.0,9146.02235896]
[1717783706655,2.2966,161.11,161.0,9146.02235896]
[1717783706963,2.64335924,161.1,161.0,9146.02235896]
[1717783707130,22.64335924,161.14,161.0,9146.02235896]
[1717783707332,20.0,161.09,161.0,9143.51305896]
[1717783707534,2.2974,161.05,161.0,9143.51305896]
[1717783707752,4.5892,161.25,161.0,9143.51305896]
[1717783707955,16.0615,161.26,161.0,9140.90205896]
[1717783707956,2.2965,161.12,161.0,9140.90205896]
[1717783708157,2.297,161.08,161.0,9140.90205896]
[1717783708363,2.2978,161.02,161.0,9140.90205896]
[1717783708535,2.2979,161.01,161.0,9140.90205896]
[1717783708856,2.2979,161.01,161.0,9132.42378654]
[1717783709155,13.06743874,161.1,161.0,9132.42378654]
[1717783709351,1.01543874,161.17,161.0,9113.77286953]
[1717783709742,25.85823674,161.17,161.0,9113.77286953]
[1717783709947,15.72047408,161.16,161.0,9113.77286953]
[1717783710144,2.2963,161.13,161.0,9113.77286953]
[1717783710336,2.2962,161.13,161.0,9113.77286953]
[1717783710537,25.85823674,161.17,161.0,9113.77286953]
[1717783710850,28.50159598,161.17,161.0,9113.77286953]
[1717783711056,2.297,161.08,161.0,9113.77286953]
[1717783711756,6.888,161.15,161.0,9113.77286953]
[1717783711757,2.64335924,161.16,161.0,9113.77286953]
[1717783711963,2.64335924,161.14,161.0,9113.77286953]
[1717783712144,3.16658414,161.13,161.0,9113.77286953]
[1717783712460,6.8938,161.01,161.0,9113.77286953]
[1717783712674,2.2979,161.01,161.0,9113.77286953]
[1717783712858,28.12228626,161.01,161.0,9113.77286953]
[1717783713041,38.12228626,161.01,161.0,9105.66916953]
[1717783713353,49.61208626,161.01,161.0,9105.66916953]
[1717783713541,51.74197187,161.01,161.0,9105.66916953]
[1717783713736,61.74197187,161.01,161.0,9096.06340209]
[1717783713943,61.74197187,161.01,161.0,9019.86340209]
[1717783714270,31.06027187,161.01,161.0,9011.18631342]
[1717783714564,11.06027187,161.01,161.0,8996.94631342]
[1717783714765,2.93798561,161.01,161.0,8996.94631342]
[1717783714940,15.23588561,161.01,161.0,8996.94631342]
[1717783715266,31.29193149,161.01,161.0,8991.94631342]
[1717783715647,31.29193149,161.01,161.0,8984.82631342]
[1717783715848,9.83178561,161.01,161.0,8972.63015329]
[1717783716058,31.29193149,161.01,161.0,8953.97923628]
[1717783716259,61.29193149,161.01,161.0,8948.82164448]
[1717783716943,61.29193149,161.01,161.0,8873.98164448]
[1717783717154,61.29193149,161.01,161.0,8830.6136813]
[1717783717553,61.29193149,161.01,161.0,8825.77139026]
[1717783717754,92.55702875,161.01,161.0,8646.60769026]
[1717783717953,212.55702875,161.01,161.0,8547.46893558]
[1717783718169,61.29193149,161.01,161.0,8505.95389921]
[1717783718361,61.29193149,161.01,161.0,8487.76228313]
[1717783718566,92.55702875,161.01,161.0,8447.18604447]
[1717783718746,61.29193149,161.01,161.0,8441.36315284]
[1717783718954,61.29193149,161.01,161.0,8429.4963618]
[1717783718955,41.29193149,161.01,161.0,8429.4963618]
[1717783719143,41.29193149,161.01,161.0,8423.14977076]
[1717783719350,41.29193149,161.01,161.0,8418.30727972]
[1717783719653,41.29193149,161.01,161.0,8146.34455658]
[1717783720073,41.29193149,161.01,161.0,8141.34455658]
[1717783720368,46.79201563,161.01,161.0,8141.34455658]
[1717783720949,20.70621563,161.01,161.0,8136.34455658]
[1717783721255,16.11031563,161.01,161.0,8136.34455658]
[1717783722050,8.43806975,161.01,161.0,8132.41201471]
[1717783722271,2.2976,161.04,161.0,8132.41201471]
[1717783722272,0.83308414,161.04,161.0,8132.41201471]
[1717783722567,0.83308414,161.04,161.0,8113.7610977]
[1717783722771,0.83308414,161.04,161.0,8095.11018069]
[1717783723560,2.2979,161.01,161.0,8095.11018069]
[1717783724081,7.89861599,161.01,161.0,8095.11018069]
[1717783724257,3.30271599,161.01,161.0,8095.11018069]
[1717783724780,34.79251599,161.01,161.0,8070.11018069]
[1717783724956,98.74490473,161.01,161.0,8070.11018069]
[1717783725363,107.93680473,161.01,161.0,8070.11018069]
[1717783725565,107.93680473,161.01,161.0,7998.91018069]
[1717783725779,107.93680473,161.01,161.0,7977.55018069]
[1717783726081,67.25510473,161.01,161.0,7970.43018069]
[1717783726269,72.62945061,161.01,161.0,7970.43018069]
[1717783726600,72.64950061,161.01,161.0,7945.43018069]
[1717783726875,93.33120061,161.01,161.0,7857.95818069]
[1717783727081,103.33120061,161.01,161.0,7780.59255901]
[1717783727274,103.33120061,161.01,161.0,7775.69255901]
[1717783727663,103.33120061,161.01,161.0,7773.82483876]
[1717783727854,103.33120061,161.01,161.0,7761.15933876]
[1717783728051,103.33120061,161.01,161.0,7756.31631851]
[1717783728251,103.33120061,161.01,161.0,7754.44859826]
[1717783728477,103.33120061,161.01,161.0,7727.58087801]
[1717783728654,103.33120061,161.01,161.0,7721.78061589]
[1717783728853,103.33120061,161.01,161.0,7719.91289564]
[1717783729055,93.33120061,161.01,161.0,7699.39425838]
[1717783729462,103.33120061,161.01,161.0,7680.74334137]
[1717783729872,93.33120061,161.01,161.0,7680.74334137]
[1717783730474,72.64950061,161.01,161.0,7680.74334137]
[1717783730676,64.97725473,161.01,161.0,7680.74334137]